fUST/lending_fUST_20250407
["ID","MTS","AMOUNT","RATE_DAILY","PERIOD"]
[357297847,1743997838655,-500.0,0.00029879,2]
[357297848,1743997838665,-500.0,0.00029879,2]
[357297849,1743997838675,-500.0,0.00029879,2]
[357297850,1743997838684,-500.0,0.00029879,2]
[357297851,1743997838693,-500.0,0.00029879,2]
[357297852,1743997838708,-650.0,0.00029879,2]
[357297853,1743997838717,-500.0,0.00029879,2]
[357297854,1743997838727,-500.0,0.00029879,2]
[357297855,1743997838736,-500.0,0.00029879,2]
[357297856,1743997838746,-2992.92831873,0.0002988,2]
[357297857,1743997838762,-1134.3605323,0.0002988,2]
[357297859,1743997839807,201.99144,0.00015,3]
[357297876,1743997845951,-155377.57284897,0.0002988,2]
[357297878,1743997845966,-500.0,0.00029886,2]
[357297880,1743997845977,-160.0,0.0002989,3]
[357297882,1743997845987,-677.08333333,0.0002989,3]
[357297884,1743997845996,-2463.24910061,0.0002989,3]
[357297885,1743997846006,-1491.3008174,0.0002989,3]
[357297889,1743997846016,-21080.30232084,0.0002989,3]
[357297893,1743997846026,-160.0,0.0002989,3]
[357297896,1743997846035,-50590.49157885,0.0002989,2]
[357297898,1743997846047,-1400.71100295,0.0002989,2]
[357297915,1743997848472,-2682.01569098,0.0002989,2]
[357297916,1743997848483,-4341.33332019,0.0002989,2]
[357297941,1743997962281,-330.198199,0.00023032,2]
[357297945,1743998223668,-155.0,0.00022222,2]
[357297965,1743998404077,164.0,0.00021918,10]
[357297966,1743998409894,-155.0,0.00022222,2]
[357297967,1743998824569,-2687.6716,0.00022222,2]
[357297968,1743998831111,-214.88663284,0.00022222,2]
[357297970,1743998850114,-85.3484133,0.00022222,2]
[357297971,1743998850136,-325.87788149,0.00023271,2]
[357297972,1743998968137,-5888.06884442,0.00022122,2]
[357297973,1743998968159,-500.0,0.0002442,2]
[357297974,1743998968181,-500.0,0.00025328,2]
[357297975,1743998968202,-380.0,0.00025743,2]
[357297976,1743998968224,-490.30685048,0.00025897,2]
[357297977,1743998968245,-500.0,0.00025933,2]
[357297978,1743998968266,-300.0,0.00025999,2]
[357297979,1743998968286,-4801.63646747,0.00026,2]
[357297980,1743998988825,67677.1912445,0.00025,120]
[357297981,1743998988861,31681.8087555,0.00025,120]
[357298015,1743999032614,-1000.0,0.00026,2]
[357298016,1743999032628,-4198.36353253,0.00026,2]
[357298017,1743999032640,-500.0,0.00026213,2]
[357298018,1743999032650,-155.38,0.000266,31]
[357298019,1743999032664,-500.0,0.00026729,2]
[357298021,1743999032675,-300.0,0.00026875,2]
[357298024,1743999032687,-500.0,0.00026876,2]
[357298026,1743999032698,-1232.39025993,0.00027197,2]
[357298028,1743999032709,-17763.15834796,0.00027297,2]
[357298030,1743999032720,-284.26645715,0.00027297,2]
[357298032,1743999032731,-500.0,0.00027298,2]
[357298036,1743999032744,-152.0,0.00027373,2]
[357298039,1743999032754,-257.20483,0.00027397,120]
[357298042,1743999032766,-500.0,0.00027397,5]
[357298045,1743999032777,-500.0,0.00027514,2]
[357298048,1743999032788,-500.0,0.0002754,2]
[357298052,1743999032799,-500.0,0.0002754,2]
[357298054,1743999032810,-500.0,0.0002754,2]
[357298057,1743999032822,-500.0,0.0002754,2]
[357298060,1743999032833,-500.0,0.0002754,2]
[357298063,1743999032844,-500.0,0.0002754,2]
[357298065,1743999032856,-500.0,0.0002754,2]
[357298068,1743999032868,-500.0,0.0002754,2]
[357298071,1743999032880,-500.0,0.0002754,2]
[357298074,1743999032892,-500.0,0.0002754,2]
[357298076,1743999032907,-500.0,0.0002754,2]
[357298079,1743999032921,-500.0,0.0002754,2]
[357298082,1743999032933,-500.0,0.0002754,2]
[357298084,1743999032946,-500.0,0.0002754,2]
[357298086,1743999032958,-500.0,0.0002754,2]
[357298088,1743999032970,-500.0,0.0002754,2]
[357298090,1743999032981,-500.0,0.0002754,2]
[357298091,1743999032992,-500.0,0.0002754,2]
[357298092,1743999033003,-500.0,0.0002754,2]
[357298093,1743999033015,-500.0,0.0002754,2]
[357298094,1743999033027,-500.0,0.0002754,2]
[357298095,1743999033043,-466.98590277,0.0002754,2]
[357298096,1743999033055,-500.0,0.0002754,2]
[357298097,1743999033068,-500.0,0.0002754,2]
[357298098,1743999033080,-500.0,0.0002754,2]
[357298099,1743999033091,-500.0,0.0002754,2]
[357298100,1743999033103,-500.0,0.0002754,2]
[357298101,1743999033115,-500.0,0.0002754,2]
[357298102,1743999033126,-500.0,0.0002754,2]
[357298103,1743999033137,-500.0,0.0002754,2]
[357298104,1743999033150,-500.0,0.0002754,2]
[357298105,1743999033167,-500.0,0.0002754,2]
[357298106,1743999033177,-500.0,0.0002754,2]
[357298107,1743999033187,-13288.99150777,0.00027541,15]
[357298116,1743999038559,-2955.34568073,0.000269,7]
[357298117,1743999038571,-69.92162047,0.000269,7]
[357298118,1743999038582,-887.79211879,0.00027541,15]
[357298119,1743999038594,-27227.04322145,0.00027541,15]
[357298120,1743999038605,-3025.26730105,0.0002759,7]
[357298121,1743999038615,-192.0,0.00027989,2]
[357298122,1743999038626,-500.0,0.00028235,2]
[357298123,1743999038635,-3025.26730105,0.00028279,7]
[357298124,1743999038645,-250.98244485,0.00028557,2]
[357298125,1743999038658,-356.27,0.00028637,3]
[357298126,1743999038668,-534.4,0.00028637,3]
[357298127,1743999038677,-39954.1113332,0.00028647,2]
[357298128,1743999038687,-295.58794627,0.00028656,2]
[357298129,1743999038700,-500.0,0.00028656,2]
[357298130,1743999038710,-160.0,0.00028657,3]
[357298131,1743999038720,-160.0,0.00028657,3]
[357298132,1743999038729,-419.36665037,0.00028657,3]
[357298133,1743999038740,-160.0,0.00028657,3]
[357298134,1743999038750,-677.08333333,0.00028657,3]
[357298135,1743999038759,-12527.9349248,0.00028657,3]
[357298136,1743999038769,-29800.79995022,0.00028657,3]
[357298137,1743999038778,-29309.58376263,0.00028657,3]
[357298138,1743999038788,-151.0,0.00028657,7]
[357298139,1743999038798,-201.96222,0.00028657,7]
[357298140,1743999038808,-151.0,0.00028657,7]
[357298141,1743999038817,-152.388223,0.00028657,7]
[357298142,1743999038827,-151.0,0.00028657,7]
[357298143,1743999038836,-151.0,0.00028657,7]
[357298144,1743999038846,-167.661697,0.00028657,7]
[357298145,1743999038855,-167.661697,0.00028657,7]
[357298146,1743999038864,-151.0,0.00028657,7]
[357298147,1743999038874,-445.351439,0.00028657,7]
[357298148,1743999038883,-445.351439,0.00028657,7]
[357298149,1743999038893,-445.351439,0.00028657,7]
[357298150,1743999038907,-445.351439,0.00028657,7]
[357298151,1743999038917,-225.101779,0.00028657,7]
[357298152,1743999038927,-151.0,0.00028657,7]
[357298153,1743999038938,-151.0,0.00028657,7]
[357298154,1743999038948,-225.101779,0.00028657,7]
[357298155,1743999038957,-239724.667999,0.00028657,2]
[357298156,1743999038967,-151.0,0.00028667,7]
[357298157,1743999038977,-151.0,0.00028667,2]
[357298158,1743999038987,-151.0,0.00028667,7]
[357298159,1743999038996,-300.587751,0.00028667,7]
[357298160,1743999039007,-151.0,0.00028667,7]
[357298161,1743999039016,-151.0,0.00028667,7]
[357298162,1743999039030,-251.879345,0.00028667,7]
[357298163,1743999039040,-151.0,0.00028667,7]
[357298164,1743999039051,-251.879345,0.00028667,7]
[357298165,1743999039060,-151.0,0.00028667,7]
[357298166,1743999039069,-250.715213,0.00028667,7]
[357298167,1743999039078,-412.461878,0.00028667,7]
[357298168,1743999039088,-412.461878,0.00028667,7]
[357298169,1743999039098,-151.0,0.00028667,7]
[357298170,1743999039108,-151.0,0.00028667,7]
[357298171,1743999039118,-151.0,0.00028667,7]
[357298172,1743999039127,-151.0,0.00028667,7]
[357298173,1743999039136,-151.0,0.00028667,7]
[357298174,1743999039145,-161.170925,0.00028667,7]
[357298175,1743999039159,-151.0,0.00028667,7]
[357298176,1743999039168,-151.0,0.00028667,7]
[357298177,1743999039178,-151.0,0.00028667,7]
[357298178,1743999039187,-151.0,0.00028667,7]
[357298179,1743999039197,-167.661697,0.00028667,7]
[357298180,1743999039207,-167.661697,0.00028667,7]
[357298181,1743999039216,-151.0,0.00028667,7]
[357298182,1743999039225,-677.08333333,0.00028667,7]
[357298183,1743999039235,-12527.9349248,0.00028667,7]
[357298184,1743999039244,-445.351439,0.00028667,7]
[357298185,1743999039254,-445.351439,0.00028667,7]
[357298186,1743999039263,-225.101779,0.00028667,7]
[357298187,1743999039273,-151.0,0.00028667,7]
[357298188,1743999039282,-225.101779,0.00028667,7]
[357298189,1743999039292,-370000.0,0.00028667,2]
[357298190,1743999039302,-502.00146942,0.00028673,5]
[357298191,1743999039311,-500.0,0.00028673,5]
[357298192,1743999039321,-25646.0403986,0.00028767,5]
[357298193,1743999039331,-151.0,0.00028796,2]
[357298194,1743999039340,-151.0,0.00028796,7]
[357298195,1743999039350,-151.0,0.00028796,7]
[357298196,1743999039359,-151.0,0.00028796,7]
[357298197,1743999039368,-251.879345,0.00028796,7]
[357298198,1743999039379,-278.13915,0.00028796,7]
[357298199,1743999039388,-251.879345,0.00028796,7]
[357298200,1743999039398,-151.0,0.00028796,7]
[357298201,1743999039410,-151.0,0.00028796,7]
[357298202,1743999039420,-151.0,0.00028796,7]
[357298203,1743999039430,-151.0,0.00028796,7]
[357298204,1743999039439,-419.36665037,0.00028796,7]
[357298205,1743999039449,-151.0,0.00028796,7]
[357298206,1743999039459,-269.46317,0.00028796,7]
[357298207,1743999039468,-154.261509,0.00028796,7]
[357298208,1743999039478,-167.661697,0.00028796,7]
[357298209,1743999039488,-167.661697,0.00028796,7]
[357298210,1743999039497,-151.0,0.00028796,7]
[357298211,1743999039507,-445.351439,0.00028796,7]
[357298212,1743999039516,-445.351439,0.00028796,7]
[357298213,1743999039526,-225.101779,0.00028796,7]
[357298214,1743999039536,-225.101779,0.00028796,7]
[357298215,1743999039546,-157.741449,0.00028809,2]
[357298216,1743999039556,-157.741449,0.00028845,2]
[357298217,1743999039565,-250.98244482,0.00028893,2]
[357298218,1743999039575,-3025.26730105,0.00028969,8]
[357298219,1743999039585,-153.39047,0.00028969,7]
[357298220,1743999039594,-412.461878,0.00028969,7]
[357298221,1743999039604,-412.461878,0.00028969,7]
[357298222,1743999039613,-182.198095,0.00028969,7]
[357298223,1743999039623,-151.0,0.00028969,7]
[357298224,1743999039632,-151.0,0.00028969,7]
[357298225,1743999039642,-151.0,0.00028969,7]
[357298226,1743999039652,-500.0,0.00028978,2]
[357298227,1743999039663,-420.0,0.00029059,2]
[357298228,1743999039673,-250.98244482,0.00029229,2]
[357298229,1743999039682,-250.98244482,0.00029564,2]
[357298230,1743999039692,-1232.3902599,0.00029599,2]
[357298231,1743999039702,-3025.26730105,0.00029659,8]
[357298232,1743999039713,-500.0,0.00029676,2]
[357298233,1743999039722,-200.0,0.00029682,2]
[357298234,1743999039732,-2622.53638034,0.000297,2]
[357298235,1743999039741,-40796.17995209,0.000297,2]
[357298236,1743999039751,-151.0,0.000297,2]
[357298237,1743999039761,-151.0,0.000297,7]
[357298238,1743999039771,-155.703213,0.000297,7]
[357298239,1743999039780,-151.0,0.000297,7]
[357298240,1743999039790,-251.879345,0.000297,7]
[357298241,1743999039799,-251.879345,0.000297,7]
[357298242,1743999039809,-151.0,0.000297,7]
[357298243,1743999039819,-412.461878,0.000297,7]
[357298244,1743999039829,-412.461878,0.000297,7]
[357298245,1743999039840,-151.0,0.000297,7]
[357298246,1743999039849,-151.0,0.000297,7]
[357298247,1743999039859,-151.0,0.000297,7]
[357298248,1743999039869,-151.0,0.000297,7]
[357298249,1743999039878,-151.0,0.000297,7]
[357298252,1743999039888,-151.0,0.000297,7]
[357298254,1743999039897,-167.661697,0.000297,7]
[357298256,1743999039910,-167.661697,0.000297,7]
[357298257,1743999039919,-151.0,0.000297,7]
[357298258,1743999039929,-445.351439,0.000297,7]
[357298259,1743999039939,-445.351439,0.000297,7]
[357298260,1743999039949,-225.101779,0.000297,7]
[357298261,1743999039959,-151.0,0.000297,7]
[357298262,1743999039968,-225.101779,0.000297,7]
[357298263,1743999039978,-500.0,0.00029741,2]
[357298264,1743999039988,-500.0,0.00029767,5]
[357298265,1743999039997,-500.0,0.00029808,2]
[357298266,1743999040008,-733.82901076,0.00029828,2]
[357298267,1743999040018,-154.878818,0.0002987,7]
[357298268,1743999040030,-500.60913764,0.00029873,5]
[357298269,1743999040040,-500.22485218,0.00029873,5]
[357298270,1743999040050,-549.60611556,0.00029879,2]
[357298272,1743999040060,-200.0,0.0002988,2]
[357298273,1743999040069,-412.461878,0.0002988,7]
[357298274,1743999040079,-412.461878,0.0002988,7]
[357298275,1743999040088,-151.0,0.0002988,7]
[357298276,1743999040098,-151.0,0.0002988,7]
[357298277,1743999040108,-160.0,0.0002989,3]
[357298278,1743999040117,-500.0,0.0002989,2]
[357298279,1743999040128,-1005.483681,0.000299,2]
[357298280,1743999040137,-250.98244482,0.000299,2]
[357298281,1743999040147,-500.0,0.00029963,2]
[357298282,1743999040158,-500.0,0.00029973,5]
[357298283,1743999040168,-500.0,0.00029973,2]
[357298284,1743999040177,-500.0,0.00029973,5]
[357298285,1743999040187,-500.0,0.00029973,5]
[357298286,1743999040197,-500.0,0.00029973,5]
[357298287,1743999040206,-500.0,0.00029973,5]
[357298289,1743999040216,-500.0,0.00029973,5]
[357298291,1743999040225,-500.0,0.00029973,5]
[357298292,1743999040235,-151.0,0.00029989,2]
[357298293,1743999040244,-161.35769188,0.00029989,2]
[357298294,1743999040253,-151.0,0.0002999,2]
[357298295,1743999040263,-240.496425,0.0002999,7]
[357298296,1743999040272,-151.0,0.0002999,7]
[357298297,1743999040282,-251.879345,0.0002999,7]
[357298298,1743999040292,-251.879345,0.0002999,7]
[357298299,1743999040302,-151.0,0.0002999,7]
[357298300,1743999040311,-151.0,0.0002999,7]
[357298301,1743999040321,-151.0,0.0002999,7]
[357298302,1743999040331,-151.0,0.0002999,7]
[357298303,1743999040340,-151.0,0.0002999,7]
[357298304,1743999040349,-167.661697,0.0002999,7]
[357298305,1743999040358,-167.661697,0.0002999,7]
[357298306,1743999040368,-151.0,0.0002999,7]
[357298307,1743999040377,-225.101779,0.0002999,7]
[357298308,1743999040387,-225.101779,0.0002999,7]
[357298309,1743999040396,-132676.37825158,0.0003,7]
[357298310,1743999040408,-132676.37825158,0.0003,7]
[357298311,1743999040418,-3244.79049191,0.0003,7]
[357298313,1743999040427,-18626.07679379,0.0003,7]
[357298315,1743999040437,-18626.07679379,0.0003,7]
[357298316,1743999040447,-200.0,0.0003,120]
[357298317,1743999040456,-1017.97348766,0.0003,7]
[357298318,1743999040466,-56957.146297,0.0003,4]
[357298319,1743999040475,-51466.88054217,0.0003,7]
[357298320,1743999040485,-51466.88054217,0.0003,7]
[357298321,1743999040495,-3000.0,0.0003,2]
[357298322,1743999040505,-160.0,0.0003,7]
[357298323,1743999040515,-151.0,0.0003,2]
[357298324,1743999040524,-151.0,0.0003,2]
[357298325,1743999040534,-151.0,0.0003,2]
[357298326,1743999040543,-151.0,0.0003,2]
[357298327,1743999040553,-151.0,0.0003,7]
[357298328,1743999040564,-151.0,0.0003,7]
[357298329,1743999040574,-251.879345,0.0003,7]
[357298336,1743999040847,-151.0,0.0003,7]
[357298337,1743999040858,-251.879345,0.0003,7]
[357298338,1743999040868,-151.0,0.0003,7]
[357298339,1743999040877,-251.879345,0.0003,7]
[357298340,1743999040887,-151.0,0.0003,7]
[357298341,1743999040896,-251.879345,0.0003,7]
[357298342,1743999040908,-151.0,0.0003,7]
[357298343,1743999040918,-251.879345,0.0003,7]
[357298344,1743999040927,-251.879345,0.0003,7]
[357298345,1743999040937,-251.879345,0.0003,7]
[357298346,1743999040946,-251.879345,0.0003,7]
[357298347,1743999040955,-251.879345,0.0003,7]
[357298348,1743999040965,-151.0,0.0003,7]
[357298349,1743999040974,-251.879345,0.0003,7]
[357298350,1743999040984,-151.0,0.0003,7]
[357298351,1743999040994,-251.879345,0.0003,7]
[357298352,1743999041003,-151.0,0.0003,7]
[357298353,1743999041016,-251.879346,0.0003,7]
[357298354,1743999041026,-151.0,0.0003,7]
[357298355,1743999041036,-151.0,0.0003,7]
[357298356,1743999041046,-151.0,0.0003,7]
[357298357,1743999041056,-412.461878,0.0003,7]
[357298358,1743999041065,-412.461878,0.0003,7]
[357298359,1743999041075,-412.461878,0.0003,7]
[357298360,1743999041084,-412.461878,0.0003,7]
[357298361,1743999041095,-412.461878,0.0003,7]
[357298362,1743999041105,-412.461878,0.0003,7]
[357298363,1743999041114,-412.461878,0.0003,7]
[357298364,1743999041124,-412.461878,0.0003,7]
[357298365,1743999041133,-412.461878,0.0003,7]
[357298366,1743999041146,-412.461878,0.0003,7]
[357298367,1743999041158,-412.461878,0.0003,7]
[357298368,1743999041168,-412.461879,0.0003,7]
[357298369,1743999041178,-151.0,0.0003,7]
[357298370,1743999041188,-151.0,0.0003,7]
[357298371,1743999041198,-151.0,0.0003,7]
[357298372,1743999041208,-151.0,0.0003,7]
[357298373,1743999041218,-151.0,0.0003,7]
[357298374,1743999041227,-151.0,0.0003,7]
[357298375,1743999041238,-151.0,0.0003,7]
[357298376,1743999041248,-151.0,0.0003,7]
[357298377,1743999041257,-151.0,0.0003,7]
[357298378,1743999041267,-293.039032,0.0003,7]
[357298379,1743999041277,-151.0,0.0003,7]
[357298380,1743999041287,-151.0,0.0003,7]
[357298381,1743999041297,-224.281504,0.0003,7]
[357298382,1743999041307,-153.687045,0.0003,7]
[357298383,1743999041317,-151.0,0.0003,7]
[357298384,1743999041327,-151.0,0.0003,7]
[357298385,1743999041337,-151.0,0.0003,7]
[357298386,1743999041347,-151.0,0.0003,7]
[357298387,1743999041356,-151.0,0.0003,7]
[357298388,1743999041366,-151.0,0.0003,7]
[357298389,1743999041376,-151.0,0.0003,7]
[357298390,1743999041385,-277.580692,0.0003,7]
[357298391,1743999041395,-25774.7867585,0.0003,7]
[357298392,1743999041406,-25774.7867585,0.0003,7]
[357298393,1743999041416,-167.661697,0.0003,7]
[357298394,1743999041426,-167.661697,0.0003,7]
[357298395,1743999041436,-167.661697,0.0003,7]
[357298396,1743999041445,-167.661697,0.0003,7]
[357298397,1743999041455,-167.661697,0.0003,7]
[357298398,1743999041465,-167.661697,0.0003,7]
[357298399,1743999041475,-167.661697,0.0003,7]
[357298400,1743999041485,-167.661697,0.0003,7]
[357298401,1743999041495,-167.661697,0.0003,7]
[357298402,1743999041504,-167.661703,0.0003,7]
[357298403,1743999041513,-151.0,0.0003,7]
[357298404,1743999041523,-151.0,0.0003,7]
[357298405,1743999041532,-213.409612,0.0003,7]
[357298406,1743999041542,-677.08333333,0.0003,7]
[357298407,1743999041551,-420.04,0.0003,28]
[357298408,1743999041560,-445.351439,0.0003,7]
[357298409,1743999041570,-445.351439,0.0003,7]
[357298410,1743999041580,-445.351439,0.0003,7]
[357298411,1743999041590,-445.351439,0.0003,7]
[357298412,1743999041600,-445.351439,0.0003,7]
[357298413,1743999041612,-445.351439,0.0003,7]
[357298414,1743999041622,-445.351439,0.0003,7]
[357298415,1743999041631,-445.351439,0.0003,7]
[357298416,1743999041641,-445.351439,0.0003,7]
[357298417,1743999041650,-445.35144,0.0003,7]
[357298418,1743999041662,-225.101779,0.0003,7]
[357298419,1743999041672,-225.101779,0.0003,7]
[357298420,1743999041682,-225.101779,0.0003,7]
[357298421,1743999041692,-225.101779,0.0003,7]
[357298422,1743999041701,-225.101779,0.0003,7]
[357298423,1743999041711,-151.0,0.0003,7]
[357298424,1743999041721,-151.0,0.0003,7]
[357298425,1743999041730,-151.0,0.0003,7]
[357298426,1743999041740,-164.974311,0.0003,7]
[357298427,1743999041749,-225.101779,0.0003,7]
[357298428,1743999041759,-225.101779,0.0003,7]
[357298429,1743999041768,-225.101779,0.0003,7]
[357298430,1743999041777,-225.101779,0.0003,7]
[357298431,1743999041787,-225.10176995,0.0003,7]
[357298432,1743999041797,-712.54,0.00030007,3]
[357298433,1743999041807,-1068.8,0.00030007,3]
[357298434,1743999041816,-3783.955311,0.0003001,2]
[357298435,1743999041825,-3025.26730105,0.00030348,9]
[357298436,1743999041835,-162.1,0.00030486,9]
[357298437,1743999041846,-162.1,0.00030486,9]
[357298438,1743999041855,-162.1,0.00030486,9]
[357298439,1743999041865,-162.1,0.00030486,9]
[357298440,1743999041874,-162.1,0.00030486,9]
[357298441,1743999041884,-162.1,0.00030486,9]
[357298442,1743999041893,-162.1,0.00030486,9]
[357298443,1743999041903,-162.1,0.00030486,9]
[357298444,1743999041915,-162.1,0.00030486,9]
[357298445,1743999041925,-166.0,0.00030833,7]
[357298446,1743999041935,-200.36185786,0.00030833,7]
[357298447,1743999041944,-168.4271849,0.00030833,7]
[357298448,1743999041953,-318.0,0.00030833,7]
[357298449,1743999041963,-357.0,0.00030833,7]
[357298450,1743999041972,-318.0,0.00030833,7]
[357298451,1743999041982,-357.0,0.00030833,7]
[357298452,1743999041992,-318.0,0.00030833,7]
[357298453,1743999042002,-357.0,0.00030833,7]
[357298454,1743999042011,-318.0,0.00030833,7]
[357298455,1743999042024,-357.0,0.00030833,7]
[357298456,1743999042034,-318.0,0.00030833,7]
[357298457,1743999042044,-357.0,0.00030833,7]
[357298458,1743999042053,-318.0,0.00030833,7]
[357298459,1743999042066,-357.0,0.00030833,7]
[357298460,1743999042076,-318.0,0.00030833,7]
[357298461,1743999042086,-357.0,0.00030833,7]
[357298462,1743999042095,-357.0,0.00030833,7]
[357298463,1743999042106,-357.0,0.00030833,7]
[357298464,1743999042116,-357.0,0.00030833,7]
[357298465,1743999042125,-357.0,0.00030833,7]
[357298466,1743999042135,-357.0,0.00030833,7]
[357298467,1743999042146,-357.0,0.00030833,7]
[357298468,1743999042158,-318.0,0.00030833,7]
[357298469,1743999042167,-357.0,0.00030833,7]
[357298470,1743999042176,-318.0,0.00030833,7]
[357298471,1743999042185,-357.0,0.00030833,7]
[357298472,1743999042196,-318.0,0.00030833,7]
[357298473,1743999042207,-357.0,0.00030833,7]
[357298474,1743999042216,-318.0,0.00030833,7]
[357298475,1743999042226,-357.0,0.00030833,7]
[357298476,1743999042236,-318.0,0.00030833,7]
[357298477,1743999042246,-357.0,0.00030833,7]
[357298478,1743999042256,-318.0,0.00030833,7]
[357298479,1743999042267,-357.0,0.00030833,7]
[357298480,1743999042277,-318.0,0.00030833,7]
[357298481,1743999042288,-357.0,0.00030833,7]
[357298482,1743999042297,-318.0,0.00030833,7]
[357298483,1743999042307,-357.0,0.00030833,7]
[357298484,1743999042319,-318.0,0.00030833,7]
[357298485,1743999042329,-174.75826273,0.00030833,7]
[357298486,1743999042340,-318.0,0.00030833,7]
[357298487,1743999042351,-318.0,0.00030833,7]
[357298488,1743999042362,-318.0,0.00030833,7]
[357298489,1743999042374,-318.0,0.00030833,7]
[357298490,1743999042385,-318.0,0.00030833,7]
[357298491,1743999042396,-318.0,0.00030833,7]
[357298492,1743999042411,-318.0,0.00030833,7]
[357298493,1743999042423,-318.0,0.00030833,7]
[357298494,1743999042435,-318.0,0.00030833,7]
[357298495,1743999042446,-318.0,0.00030833,7]
[357298496,1743999042456,-318.0,0.00030833,7]
[357298497,1743999042466,-318.0,0.00030833,7]
[357298498,1743999042476,-318.0,0.00030833,7]
[357298499,1743999042487,-324.26015709,0.00030833,7]
[357298500,1743999042498,-3025.26730105,0.00031038,9]
[357298501,1743999042508,-207.4,0.00031051,2]
[357298502,1743999042529,-280.7,0.00031072,9]
[357298503,1743999042542,-280.7,0.00031072,9]
[357298504,1743999042553,-280.7,0.00031072,9]
[357298505,1743999042565,-280.7,0.00031072,9]
[357298506,1743999042576,-280.7,0.00031072,9]
[357298507,1743999042588,-280.7,0.00031072,9]
[357298508,1743999042599,-280.7,0.00031072,9]
[357298509,1743999042612,-280.7,0.00031072,9]
[357298510,1743999042624,-280.7,0.00031072,9]
[357298511,1743999042635,-200.0,0.00031249,2]
[357298512,1743999042646,-160.0,0.00031319,2]
[357298513,1743999042662,-160.0,0.00031327,2]
[357298514,1743999042672,-200.0,0.000314,120]
[357298515,1743999042683,-200.0,0.000314,120]
[357298516,1743999042694,-587.0,0.0003142,2]
[357298517,1743999042705,-155.38,0.000315,31]
[357298518,1743999042715,-155.38,0.000315,31]
[357298519,1743999042726,-323.56009542,0.00031586,7]
[357298520,1743999042737,-357.0,0.00031586,7]
[357298521,1743999042748,-175.56794436,0.00031586,7]
[357298522,1743999042759,-200.0,0.00032,120]
[357298523,1743999042770,-1232.3902599,0.00032,2]
[357298524,1743999042780,-215.0738,0.0003242,2]
[357298525,1743999042790,-500.0,0.00032583,7]
[357298526,1743999042800,-200.0,0.00032619,2]
[357298527,1743999042811,-1000.0,0.00032877,5]
[357298528,1743999042821,-317.69739,0.000332,120]
[357298529,1743999042832,-200.0,0.000332,120]
[357298530,1743999042842,-511.04430797,0.00033683,7]
[357298531,1743999042853,-201.0,0.0003375,39]
[357298532,1743999042864,-223.0315306,0.00033789,2]
[357298533,1743999042874,-316.18382447,0.00033989,2]
[357298534,1743999042885,-200.0,0.00034,120]
[357298535,1743999042896,-500.0,0.00034236,7]
[357298536,1743999042914,-1232.3902599,0.00034402,2]
[357298537,1743999042925,-151.0,0.000349,17]
[357298538,1743999042935,-500.0,0.00034903,7]
[357298539,1743999042946,-500.0,0.00034987,7]